bitfinex/quotes_BTCUSD_20240717
["timestamp","ask_amount","ask_price","bid_price","bid_amount"]
[1721189609979,0.001,65910.0,65909.0,0.165723]
[1721189610666,0.61054774,65910.0,65909.0,0.014]
[1721189611232,0.61054774,65910.0,65909.0,0.027]
[1721189611233,0.61154774,65910.0,65909.0,0.027]
[1721189611584,0.61054774,65910.0,65909.0,0.013]
[1721189611967,0.59265101,65910.0,65909.0,0.013]
[1721189612197,0.93499501,65910.0,65909.0,0.013]
[1721189612401,0.93499501,65910.0,65909.0,0.026]
[1721189612806,0.93499501,65910.0,65909.0,0.013]
[1721189612981,0.75862,65909.0,65908.0,0.000924]
[1721189613179,0.91300174,65909.0,65908.0,0.000924]
[1721189614755,0.30610574,65909.0,65908.0,0.000924]
[1721189614895,0.30610574,65909.0,65908.0,0.002924]
[1721189615656,0.30610574,65909.0,65908.0,0.000924]
[1721189616032,0.30610574,65909.0,65908.0,0.002924]
[1721189616402,0.4742,65914.0,65909.0,0.0765]
[1721189616602,0.4742,65914.0,65913.0,0.151715]
[1721189617054,0.4742,65925.0,65915.0,0.0765]
[1721189617243,0.15438174,65924.0,65918.0,0.303406]
[1721189617440,0.15438174,65924.0,65920.0,0.151698]
[1721189617813,0.15438174,65924.0,65921.0,0.0104027]
[1721189618017,0.15438174,65924.0,65923.0,0.0633]
[1721189618468,0.15438174,65924.0,65923.0,0.07368631]
[1721189618641,0.4832,65925.0,65923.0,0.37707031]
[1721189618847,0.4832,65925.0,65924.0,0.151689]
[1721189619062,0.4832,65925.0,65924.0,0.16206712]
[1721189619254,0.4742,65925.0,65924.0,0.16206712]
[1721189619895,0.4742,65925.0,65924.0,0.54374612]
[1721189620101,0.4742,65925.0,65924.0,0.84712512]
[1721189620873,0.05030731,65934.0,65933.0,0.758345]
[1721189621068,0.05030731,65934.0,65933.0,0.455007]
[1721189621333,0.00084,65934.0,65933.0,0.4653]
[1721189622186,0.00084,65934.0,65933.0,0.161962]
[1721189622353,0.00184,65934.0,65933.0,0.167962]
[1721189623236,0.00284,65934.0,65933.0,0.175962]
[1721189623441,0.00284,65934.0,65933.0,0.024293]
[1721189625198,0.61122074,65934.0,65933.0,0.018293]
[1721189625335,0.91455374,65934.0,65933.0,0.010293]
[1721189625541,0.151676,65930.0,65925.0,0.1412]
[1721189625765,0.15438174,65929.0,65925.0,0.1412]
[1721189625969,0.15438174,65929.0,65926.0,0.01032557]
[1721189626482,0.15438174,65929.0,65926.0,0.16200957]
[1721189626682,0.15438174,65929.0,65926.0,0.01032557]
[1721189626885,0.00284,65934.0,65931.0,0.151672]
[1721189627039,0.00284,65934.0,65932.0,0.01027751]
[1721189627285,0.00284,65934.0,65930.0,0.151675]
[1721189627500,0.00284,65934.0,65931.0,0.0102853]
[1721189628121,0.00284,65934.0,65929.0,0.151677]
[1721189628357,0.00084,65934.0,65932.0,0.01027711]
[1721189628561,0.00084,65934.0,65931.0,0.01]
[1721189628785,0.00084,65934.0,65933.0,0.01026892]
[1721189629208,0.00084,65934.0,65929.0,0.161677]
[1721189629427,0.00084,65934.0,65930.0,0.0102935]
[1721189629925,0.00084,65934.0,65931.0,0.01]
[1721189630338,0.00084,65934.0,65932.0,0.01027711]
[1721189630484,0.152506,65934.0,65932.0,0.01027711]
[1721189631045,0.00084,65934.0,65932.0,0.01027711]
[1721189632263,0.00084,65934.0,65932.0,0.02027711]
[1721189633283,0.60938874,65933.0,65932.0,0.02927711]
[1721189633465,0.69198874,65933.0,65932.0,0.019]
[1721189633648,0.99532674,65933.0,65932.0,0.019]
[1721189634586,0.99532674,65933.0,65932.0,0.009]
[1721189635033,0.99532674,65933.0,65932.0,0.021]
[1721189635232,0.99532674,65933.0,65932.0,0.012]
[1721189635379,0.99532674,65933.0,65932.0,0.022]
[1721189637079,0.60938874,65933.0,65932.0,0.022]
[1721189638500,0.15438174,65933.0,65932.0,0.022]
[1721189638720,0.15438174,65933.0,65932.0,0.0322782]
[1721189638924,0.30605074,65933.0,65932.0,0.0322782]
[1721189642602,0.91272674,65933.0,65932.0,0.0322782]
[1721189642807,1.33746474,65933.0,65932.0,0.0322782]
[1721189643026,1.33746474,65933.0,65932.0,0.022]
[1721189643027,1.38746474,65933.0,65932.0,0.022]
[1721189643227,1.33746474,65933.0,65932.0,0.022]
[1721189643410,1.54736474,65933.0,65932.0,0.022]
[1721189643711,1.76666474,65933.0,65932.0,0.022]
[1721189643887,1.76666474,65933.0,65932.0,0.012]
[1721189644293,1.76666474,65933.0,65916.0,0.0607]
[1721189644294,0.1517,65920.0,65916.0,0.0607]
[1721189644498,0.30608174,65920.0,65916.0,0.0607]
[1721189644665,0.30608074,65920.0,65916.0,0.0607]
[1721189645263,0.15438174,65920.0,65916.0,0.0607]
[1721189645513,0.15438174,65920.0,65917.0,0.151705]
[1721189646037,0.15438174,65920.0,65918.0,0.12597181]
[1721189646253,0.15438174,65920.0,65919.0,0.12597181]
[1721189646399,0.15538174,65920.0,65919.0,0.12597364]
[1721189646809,0.15438174,65920.0,65919.0,0.12597364]
[1721189647007,0.15438174,65920.0,65919.0,0.82597364]
[1721189647211,0.15538174,65920.0,65919.0,0.82597405]
[1721189647417,0.15538174,65920.0,65919.0,0.82597514]
[1721189648406,0.15538174,65920.0,65919.0,0.83697514]
[1721189649007,0.15538174,65920.0,65919.0,1.43017814]
[1721189649008,0.001,65920.0,65919.0,1.43017814]
[1721189649321,0.001,65920.0,65919.0,2.03698214]
[1721189649749,0.001,65920.0,65919.0,1.73358014]
[1721189650429,0.001,65920.0,65919.0,1.73356745]
[1721189651153,0.20158685,65930.0,65925.0,0.151687]
[1721189651350,0.15438174,65929.0,65925.0,0.151687]
[1721189651552,0.30605974,65929.0,65925.0,0.151687]
[1721189651730,0.30605974,65929.0,65924.0,0.151688]
[1721189651932,0.151683,65927.0,65920.0,0.303395]
[1721189652198,0.60941874,65929.0,65923.0,0.15169]
[1721189652432,0.60941874,65929.0,65921.0,0.82596392]
[1721189652433,0.30606174,65929.0,65925.0,0.151686]
[1721189652612,0.30806174,65929.0,65925.0,0.151686]
[1721189653549,0.30806174,65929.0,65921.0,0.7]
[1721189653550,0.45973874,65929.0,65921.0,0.7]
[1721189653673,0.151687,65926.0,65921.0,0.851696]
[1721189653876,0.30606874,65926.0,65921.0,0.851696]
[1721189654077,0.30606874,65925.0,65921.0,0.7]
[1721189654277,0.15169,65924.0,65921.0,0.7]
[1721189654458,0.15438174,65925.0,65921.0,0.7]
[1721189654459,0.30606874,65925.0,65921.0,0.7]
[1721189654868,0.30606874,65925.0,65921.0,0.703]
[1721189655113,0.30606874,65925.0,65921.0,0.7]
[1721189655520,0.30606874,65925.0,65921.0,0.706]
[1721189655678,0.30606874,65925.0,65921.0,0.7]
[1721189655881,0.30606874,65925.0,65921.0,0.703]
[1721189656093,0.30606874,65925.0,65921.0,0.708]
[1721189656716,0.15169,65924.0,65921.0,0.008]
[1721189657396,0.15438174,65925.0,65921.0,0.311393]
[1721189657593,0.15438174,65925.0,65922.0,0.151693]
[1721189657870,0.151678,65929.0,65924.0,0.151688]
[1721189658005,0.15438174,65928.0,65924.0,0.151688]
[1721189659642,0.15438174,65928.0,65924.0,0.852688]
[1721189666552,0.15438174,65928.0,65925.0,0.151686]
[1721189666713,0.15438174,65928.0,65925.0,0.851686]
[1721189667723,0.15438174,65928.0,65926.0,0.151684]
[1721189667918,0.15438174,65928.0,65926.0,0.851684]
[1721189668119,0.00084,65933.0,65926.0,0.7]
[1721189668325,0.15438174,65932.0,65928.0,0.151679]
[1721189668724,0.15438174,65932.0,65929.0,0.0607]
[1721189668925,0.15438174,65932.0,65930.0,0.0782]
[1721189669562,0.15538174,65932.0,65930.0,0.0782]
[1721189669904,0.30705274,65932.0,65930.0,0.7782]
[1721189670107,0.31305274,65932.0,65930.0,0.7782]
[1721189670526,0.30805274,65932.0,65930.0,0.7782]
[1721189670921,0.31305274,65932.0,65930.0,0.7782]
[1721189671746,0.151673,65931.0,65930.0,0.7782]
[1721189671945,0.30605474,65931.0,65930.0,0.7782]
[1721189672367,0.30605474,65931.0,65930.0,0.7822]
[1721189672569,0.30605474,65931.0,65930.0,0.7812]
[1721189672964,0.30605474,65931.0,65930.0,0.7902]
[1721189673170,0.30605474,65931.0,65930.0,0.7872]
[1721189673524,0.30705474,65931.0,65930.0,0.717]
[1721189674824,0.61040174,65931.0,65930.0,0.717]
[1721189675018,0.61040174,65931.0,65930.0,0.017]
[1721189678286,0.15538174,65931.0,65930.0,0.017]
[1721189678491,0.30705474,65931.0,65930.0,0.017]
[1721189679741,0.30705474,65931.0,65930.0,0.717]
[1721189680703,0.30705474,65931.0,65930.0,0.017]
[1721189683785,0.30705474,65931.0,65930.0,0.717]
[1721189684802,0.61040174,65931.0,65930.0,0.717]
[1721189685142,0.61040174,65931.0,65930.0,0.017]
[1721189686238,0.151677,65930.0,65926.0,0.1392]
[1721189686444,0.151677,65930.0,65928.0,0.7]
[1721189686445,0.15438174,65929.0,65928.0,0.7]
[1721189688619,0.15438174,65929.0,65928.0,0.82596491]
[1721189688903,0.15438174,65929.0,65928.0,0.713]
[1721189689061,0.15438174,65929.0,65928.0,0.723]
[1721189690092,0.15438174,65929.0,65928.0,0.84896527]
[1721189691480,0.15438174,65929.0,65928.0,0.723]
[1721189691684,0.00084,65932.0,65931.0,0.217673]
[1721189692006,1.74272222,65932.0,65931.0,0.7]
[1721189692206,0.96829,65929.0,65928.0,0.023]
[1721189692448,2.03148374,65929.0,65928.0,0.023]
[1721189692623,2.03148374,65929.0,65928.0,0.01]
[1721189692836,0.151712,65914.0,65913.0,0.46304871]
[1721189693043,0.39369374,65914.0,65913.0,0.46304871]
[1721189693265,0.151715,65913.0,65912.0,0.0754]
[1721189693447,0.30609674,65913.0,65912.0,0.0754]
[1721189693605,0.30609674,65913.0,65911.0,0.0639]
[1721189693847,0.151717,65912.0,65911.0,0.0639]
[1721189694468,0.30609874,65912.0,65911.0,0.0639]
[1721189695139,0.15438174,65912.0,65911.0,0.0639]
[1721189695345,0.2191,65919.0,65911.0,0.0639]
[1721189695346,0.303398,65920.0,65914.0,0.151711]
[1721189695538,0.151703,65918.0,65915.0,0.0614]
[1721189695899,0.30608474,65918.0,65915.0,0.0614]
[1721189696909,0.30608474,65918.0,65915.0,0.0754]
[1721189699123,0.30608474,65918.0,65915.0,0.0894]
[1721189702195,0.303375,65925.0,65918.0,0.0634]
[1721189702397,0.15438174,65924.0,65919.0,0.2287]
[1721189702663,0.15438174,65924.0,65920.0,0.0634]
[1721189702664,0.30607174,65924.0,65920.0,0.0634]
[1721189704038,0.35278027,65927.0,65918.0,0.007]
[1721189704039,0.04941027,65927.0,65926.0,0.455055]
[1721189704246,0.04941027,65927.0,65926.0,0.592955]
[1721189704470,0.4742,65929.0,65928.0,0.596041]
[1721189705335,0.47385584,65929.0,65928.0,0.596041]
[1721189706155,0.47385584,65929.0,65928.0,0.899402]
[1721189706388,0.47385584,65929.0,65928.0,0.913402]
[1721189707180,0.47385584,65929.0,65928.0,0.927402]
[1721189707765,0.00084,65933.0,65931.0,0.45502]
[1721189707929,0.00084,65933.0,65931.0,0.51992]
[1721189709749,0.00084,65933.0,65931.0,0.53392]
[1721189710935,0.00084,65933.0,65931.0,0.54792]
[1721189711756,0.00084,65933.0,65931.0,0.930567]
[1721189712303,0.00084,65933.0,65931.0,0.62722]
[1721189714496,0.00084,65933.0,65931.0,1.233914]
[1721189714986,0.00084,65933.0,65931.0,1.35985849]
[1721189715186,0.00084,65933.0,65931.0,1.233914]
[1721189716603,0.00084,65933.0,65931.0,0.930567]
[1721189722680,0.00084,65933.0,65931.0,0.62722]
[1721189723437,0.00084,65933.0,65931.0,0.930567]
[1721189728541,0.00084,65933.0,65931.0,0.323873]
[1721189728901,0.00084,65933.0,65931.0,0.0929]
[1721189730861,0.00084,65933.0,65931.0,0.028]
[1721189731082,0.9555163,65932.0,65931.0,0.028]
[1721189731247,1.3899583,65932.0,65931.0,0.028]
[1721189731450,1.6933003,65932.0,65931.0,0.028]
[1721189731653,1.8532003,65932.0,65931.0,0.028]
[1721189731855,1.8532003,65932.0,65931.0,0.014]
[1721189732065,1.8532003,65932.0,65929.0,0.000924]
[1721189732066,1.271632,65930.0,65929.0,0.000924]
[1721189732270,1.54601374,65930.0,65929.0,0.000924]
[1721189733523,1.54601374,65930.0,65929.0,0.003924]
[1721189734753,0.874197,65911.0,65910.0,0.000924]
[1721189734967,1.33201774,65911.0,65910.0,0.000924]
[1721189735519,1.84535674,65911.0,65910.0,0.000924]
[1721189736152,1.84535674,65911.0,65909.0,0.000924]
[1721189736153,1.575398,65910.0,65909.0,0.000924]
[1721189736352,1.95047974,65910.0,65909.0,0.000924]
[1721189737734,2.25592374,65910.0,65909.0,0.000924]
[1721189738735,2.25392374,65910.0,65909.0,0.000924]
[1721189739452,2.25792374,65910.0,65909.0,0.000924]
[1721189741044,2.25992374,65910.0,65909.0,0.000924]
[1721189741243,0.05,65906.0,65905.0,0.000924]
[1721189741446,1.7608283,65906.0,65905.0,0.000924]
[1721189741668,1.8608283,65906.0,65905.0,0.000924]
[1721189741924,2.7712143,65906.0,65905.0,0.000924]
[1721189742125,3.0746763,65906.0,65905.0,0.000924]
[1721189744064,3.0756763,65906.0,65905.0,0.000924]
[1721189745071,2.59465614,65906.0,65905.0,0.000924]
[1721189745743,2.55575614,65906.0,65905.0,0.000924]
[1721189746167,2.60575614,65906.0,65905.0,0.000924]
[1721189746922,2.55575614,65906.0,65905.0,0.000924]
[1721189747965,2.60575614,65906.0,65905.0,0.000924]
[1721189748343,2.76010571,65906.0,65905.0,0.000924]
[1721189748576,2.60575614,65906.0,65905.0,0.000924]
[1721189748788,2.94811814,65906.0,65905.0,0.000924]
[1721189750239,2.95211814,65906.0,65905.0,0.001924]
[1721189750594,2.95111814,65906.0,65905.0,0.001924]
[1721189750780,2.95411814,65906.0,65905.0,0.002924]
[1721189750986,3.10846771,65906.0,65905.0,0.002924]
[1721189756850,2.63720571,65906.0,65905.0,0.002924]
[1721189757051,2.48285614,65906.0,65905.0,0.002924]
[1721189757250,2.52981658,65906.0,65905.0,0.002924]
[1721189758972,2.47981658,65906.0,65905.0,0.002924]
[1721189759862,2.52981658,65906.0,65905.0,0.002924]
[1721189760473,2.60519407,65906.0,65905.0,0.002924]
[1721189760672,2.47981658,65906.0,65905.0,0.002924]
[1721189761995,2.52981658,65906.0,65905.0,0.002924]
[1721189762659,2.52981658,65906.0,65905.0,0.002724]
[1721189763502,2.64371658,65906.0,65905.0,0.002724]
[1721189763626,2.64371658,65906.0,65895.0,0.000924]
[1721189763627,1.575605,65900.0,65895.0,0.000924]
[1721189763832,2.04908674,65900.0,65895.0,0.000924]
[1721189764288,2.52294258,65900.0,65895.0,0.000924]
[1721189765022,2.52594258,65900.0,65895.0,0.000924]
[1721189766938,2.30684258,65900.0,65895.0,0.000924]
[1721189768085,2.30984258,65900.0,65895.0,0.000924]
[1721189768286,2.46419215,65900.0,65895.0,0.000924]
[1721189772577,2.54239215,65900.0,65895.0,0.000924]
[1721189772779,2.88478215,65900.0,65895.0,0.000924]
[1721189776413,2.97248215,65900.0,65895.0,0.000924]
[1721189779351,2.93358215,65900.0,65895.0,0.000924]
[1721189780301,2.93358215,65900.0,65896.0,0.066]
[1721189780302,2.46419215,65900.0,65896.0,0.066]
[1721189780448,2.55189215,65900.0,65896.0,0.066]
[1721189785222,2.64292433,65900.0,65896.0,0.066]
[1721189785452,2.55189215,65900.0,65896.0,0.066]
[1721189785825,2.64292433,65900.0,65896.0,0.066]
[1721189786288,2.66568237,65900.0,65896.0,0.066]
[1721189786420,2.66568414,65900.0,65896.0,0.066]
[1721189787209,2.55189215,65900.0,65896.0,0.066]
[1721189789488,2.68844108,65900.0,65896.0,0.066]
[1721189789739,2.55189215,65900.0,65896.0,0.066]
[1721189789940,2.68844193,65900.0,65896.0,0.066]
[1721189790312,2.55189215,65900.0,65896.0,0.066]
[1721189790514,2.68844273,65900.0,65896.0,0.066]
[1721189791377,2.55189215,65900.0,65896.0,0.066]
[1721189791782,2.85538215,65900.0,65896.0,0.066]
[1721189792330,2.85538215,65900.0,65890.0,0.009196]
[1721189792331,0.201765,65891.0,65890.0,0.009196]
[1721189792535,0.84737774,65891.0,65890.0,0.009196]
[1721189792735,1.75797074,65891.0,65890.0,0.009196]
[1721189793165,1.89454607,65891.0,65890.0,0.009196]
[1721189793327,1.75797074,65891.0,65890.0,0.009196]
[1721189793957,1.80955306,65891.0,65890.0,0.009196]
[1721189794155,1.80955306,65891.0,65889.0,0.0617]
[1721189794156,1.575812,65890.0,65889.0,0.0617]
[1721189794356,1.575812,65890.0,65882.0,0.000924]
[1721189794357,0.505325,65887.0,65886.0,0.0638]
[1721189794616,1.45450674,65887.0,65886.0,0.0638]
[1721189794758,1.75805674,65887.0,65886.0,0.0638]
[1721189794963,2.07230631,65887.0,65886.0,0.0638]
[1721189795945,1.416033,65884.0,65883.0,0.088696]
[1721189796129,1.77190072,65884.0,65883.0,0.088696]
[1721189796306,1.65811474,65884.0,65883.0,0.088696]
[1721189796713,1.81801474,65884.0,65883.0,0.088696]
[1721189796892,2.00007752,65884.0,65883.0,0.088696]
[1721189797099,1.98630393,65884.0,65883.0,0.088696]
[1721189797294,1.98630393,65884.0,65883.0,0.009196]
[1721189797498,1.98630393,65884.0,65883.0,0.010196]
[1721189798305,2.10005298,65884.0,65883.0,0.010196]
[1721189798914,1.98630393,65884.0,65883.0,0.010196]
[1721189801395,1.91801474,65884.0,65883.0,0.010196]
[1721189801620,1.78031474,65884.0,65883.0,0.010196]
[1721189801821,2.03172873,65884.0,65883.0,0.010196]
[1721189802143,2.22157774,65884.0,65883.0,0.010196]
[1721189802339,2.22157774,65884.0,65874.0,0.000924]
[1721189802340,0.361702,65875.0,65874.0,0.000924]
[1721189802544,0.361709,65872.0,65871.0,0.009207]
[1721189802832,1.272598,65870.0,65869.0,0.009196]
[1721189803032,1.83060774,65870.0,65869.0,0.009196]
[1721189803157,0.05,65858.0,65844.0,0.01197797]
[1721189803358,0.455538,65856.0,65855.0,0.1415]
[1721189803631,0.69761974,65856.0,65855.0,0.1415]
[1721189804192,0.60991974,65856.0,65855.0,0.1415]
[1721189804392,1.43680374,65856.0,65855.0,0.1415]
[1721189804875,0.60991974,65856.0,65855.0,0.1415]
[1721189805077,0.15438174,65856.0,65855.0,0.1415]
[1721189805227,0.30622774,65856.0,65855.0,0.1415]
[1721189806349,0.30622774,65856.0,65855.0,0.8415]
[1721189807131,0.30722774,65856.0,65855.0,0.8555]
[1721189807333,0.30822774,65856.0,65855.0,0.86566505]
[1721189807749,0.61191974,65856.0,65855.0,0.86566505]
[1721189808433,0.91561174,65856.0,65855.0,0.86566505]
[1721189808631,0.91561174,65856.0,65855.0,0.16566505]
[1721189808829,0.91561174,65856.0,65855.0,0.1555]
[1721189809653,1.21930374,65856.0,65855.0,0.1555]
[1721189812023,0.61191974,65856.0,65855.0,0.1555]
[1721189812874,0.61191974,65856.0,65855.0,0.307348]
[1721189812875,0.002,65856.0,65855.0,0.307348]
[1721189813080,0.002,65856.0,65855.0,0.92498538]
[1721189813475,0.002,65856.0,65855.0,0.62128838]
[1721189813896,0.002,65856.0,65855.0,0.16574338]
[1721189814734,0.002,65856.0,65855.0,0.86574338]
[1721189816116,0.002,65856.0,65855.0,1.32128838]
[1721189816697,0.002,65856.0,65855.0,1.22868238]
[1721189817301,0.002,65856.0,65855.0,0.92498538]
[1721189817699,0.151833,65862.0,65858.0,0.151841]
[1721189817916,0.151833,65862.0,65860.0,0.136]
[1721189818125,0.151833,65862.0,65861.0,0.0609]
[1721189818126,0.759163,65862.0,65861.0,0.0609]
[1721189818292,0.455498,65862.0,65861.0,0.07108944]
[1721189818496,0.455498,65862.0,65861.0,0.136]
[1721189818701,0.455498,65862.0,65861.0,0.1496]
[1721189818898,0.45549,65863.0,65862.0,0.146]
[1721189819554,0.60987174,65863.0,65862.0,0.146]
[1721189820909,0.60987174,65863.0,65862.0,0.152]
[1721189821105,0.60987174,65863.0,65862.0,0.157]
[1721189823662,0.60987174,65863.0,65862.0,0.146]
[1721189824287,0.61287174,65863.0,65862.0,0.146]
[1721189824407,0.61187174,65863.0,65862.0,0.146]
[1721189825161,0.61187174,65863.0,65862.0,0.152]
[1721189825572,0.61187174,65863.0,65862.0,0.16218123]
[1721189825771,0.60987174,65863.0,65862.0,0.16218123]
[1721189826394,0.60987174,65863.0,65862.0,0.16718123]
[1721189832456,0.91353174,65863.0,65862.0,0.157]
[1721189832657,1.43669174,65863.0,65862.0,0.011]
[1721189834053,1.062922,65856.0,65855.0,0.061024]
[1721189834262,1.062922,65856.0,65855.0,0.000924]
[1721189834263,1.43680374,65856.0,65855.0,0.000924]
[1721189835521,1.43680374,65856.0,65855.0,0.007924]
[1721189836455,1.43680374,65856.0,65855.0,0.013924]
[1721189837024,1.21730374,65856.0,65855.0,0.013924]
[1721189840364,0.60991974,65856.0,65855.0,0.076224]
[1721189840573,0.303656,65864.0,65858.0,0.151841]
[1721189840771,0.00084,65868.0,65858.0,0.151841]
[1721189840772,0.303666,65862.0,65858.0,0.1469]
[1721189840986,0.10622074,65861.0,65858.0,0.1469]
[1721189841389,0.151837,65860.0,65858.0,0.1469]
[1721189841618,0.15438174,65859.0,65858.0,0.1469]
[1721189842073,0.15438174,65859.0,65858.0,0.8469]
[1721189842267,0.15438174,65859.0,65858.0,0.8479]
[1721189842515,0.002,65864.0,65858.0,1.004683]
[1721189842716,0.002,65864.0,65863.0,0.15183]
[1721189842927,0.00084,65868.0,65864.0,0.294427]
[1721189843096,0.15438174,65867.0,65865.0,0.08]
[1721189843304,0.15438174,65867.0,65866.0,0.0626]
[1721189844277,0.15438174,65867.0,65866.0,0.1426]
[1721189844456,0.15438174,65867.0,65866.0,0.294423]
[1721189845003,0.15438174,65867.0,65866.0,0.1426]
[1721189845327,0.00084,65868.0,65867.0,0.759105]
[1721189845533,0.00084,65868.0,65867.0,0.901105]
[1721189846215,0.00084,65868.0,65867.0,0.597463]
[1721189846367,0.00084,65868.0,65867.0,1.297463]
[1721189847241,0.15522174,65868.0,65867.0,0.842]
[1721189847406,0.30703974,65868.0,65867.0,0.842]
[1721189849664,0.91431374,65868.0,65867.0,0.843]
[1721189849846,0.91431374,65868.0,65867.0,0.143]
[1721189850248,1.13381374,65868.0,65867.0,0.001]
[1721189850617,0.759127,65865.0,65864.0,0.7]
[1721189850813,1.21715974,65865.0,65864.0,0.7]
[1721189851973,1.21715974,65865.0,65864.0,0.003]
[1721189853123,1.26715974,65865.0,65864.0,0.003]
[1721189853411,1.85251074,65865.0,65864.0,0.003]
[1721189853614,1.85251074,65865.0,65864.0,0.005]
[1721189853968,1.95251074,65865.0,65864.0,0.003]
[1721189854394,1.95451074,65865.0,65864.0,0.003]
[1721189854959,1.062922,65856.0,65855.0,0.000924]
[1721189855156,1.43680374,65856.0,65855.0,0.000924]
[1721189856287,0.91361174,65856.0,65855.0,0.141024]
[1721189856458,0.91361174,65856.0,65855.0,0.142024]
[1721189858533,1.21730374,65856.0,65855.0,0.001924]
[1721189866759,1.68939574,65856.0,65855.0,0.001924]
[1721189867203,1.84929574,65856.0,65855.0,0.001924]
[1721189867406,1.94929574,65856.0,65855.0,0.001924]
[1721189867824,2.10364531,65856.0,65855.0,0.001924]
[1721189868460,2.10364531,65856.0,65855.0,0.000924]
[1721189868648,1.95129574,65856.0,65855.0,0.001924]
[1721189869226,1.90129574,65856.0,65855.0,0.001924]
[1721189869671,1.95129574,65856.0,65855.0,0.001924]
[1721189870230,2.08189574,65856.0,65855.0,0.001924]
[1721189870454,2.13189574,65856.0,65855.0,0.001924]
[1721189871524,2.20452503,65856.0,65855.0,0.001924]
[1721189871725,2.2954029,65856.0,65855.0,0.001924]
[1721189871874,2.20452503,65856.0,65855.0,0.001924]
[1721189872050,2.31812237,65856.0,65855.0,0.001924]
[1721189873218,2.20452503,65856.0,65855.0,0.001924]
[1721189875141,2.29536219,65856.0,65855.0,0.001924]
[1721189875705,2.2227329,65856.0,65855.0,0.001924]
[1721189876745,2.0628329,65856.0,65855.0,0.001924]
[1721189876958,2.2227329,65856.0,65855.0,0.001924]
[1721189877987,2.2227189,65856.0,65855.0,0.001924]
[1721189878367,2.22271296,65856.0,65855.0,0.001924]
[1721189878796,2.37706253,65856.0,65855.0,0.001924]
[1721189879148,2.28624531,65856.0,65855.0,0.001924]
[1721189882439,2.58993731,65856.0,65855.0,0.001924]
[1721189883325,2.58793731,65856.0,65855.0,0.000924]
[1721189883559,2.58993731,65856.0,65855.0,0.002924]
[1721189884025,2.05239574,65856.0,65855.0,0.002924]
[1721189885114,2.00239574,65856.0,65855.0,0.064724]
[1721189885313,2.00039574,65856.0,65855.0,0.062724]
[1721189885450,1.84049574,65856.0,65855.0,0.062724]
[1721189885815,1.85449574,65856.0,65855.0,0.064724]
[1721189887768,1.33130374,65856.0,65855.0,0.146824]
[1721189888395,1.55080374,65856.0,65855.0,0.146824]
[1721189888705,1.54180374,65856.0,65855.0,0.145824]
[1721189888992,1.32530374,65856.0,65855.0,0.145824]
[1721189889316,1.32830374,65856.0,65855.0,0.145824]
[1721189889530,1.32030374,65856.0,65855.0,0.144824]
[1721189890494,1.32430374,65856.0,65855.0,0.144824]
[1721189890896,1.54380374,65856.0,65855.0,0.144824]
[1721189892549,1.32430374,65856.0,65855.0,0.144824]
[1721189893180,1.32130374,65856.0,65855.0,0.144824]
[1721189893319,0.91361174,65856.0,65855.0,0.144824]
[1721189893528,0.61691974,65856.0,65855.0,0.144824]
[1721189893773,0.61391974,65856.0,65855.0,0.144824]
[1721189894195,0.61591974,65856.0,65855.0,0.144824]
[1721189895024,0.61191974,65856.0,65855.0,0.144824]
[1721189895425,0.61491974,65856.0,65855.0,0.144824]
[1721189897703,0.31122774,65856.0,65855.0,0.144824]
[1721189898755,0.61491974,65856.0,65855.0,0.144824]
[1721189899301,0.31122774,65856.0,65855.0,0.144824]
[1721189899737,0.31122774,65856.0,65855.0,0.844824]
[1721189900316,0.61491974,65856.0,65855.0,0.844824]
[1721189900943,0.61491974,65856.0,65855.0,0.144824]
[1721189902478,0.91861174,65856.0,65855.0,0.844824]
[1721189902688,1.44180374,65856.0,65855.0,0.762724]
[1721189902829,1.44180374,65856.0,65855.0,0.700924]
[1721189903636,1.83439574,65856.0,65855.0,0.000924]
[1721189903835,2.39798774,65856.0,65855.0,0.000924]
[1721189904084,2.13525007,65856.0,65855.0,0.000924]
[1721189904283,2.14636721,65856.0,65855.0,0.000924]
[1721189904656,2.14336721,65856.0,65855.0,0.000924]
[1721189905103,2.15136721,65856.0,65855.0,0.001924]
[1721189905453,1.84849574,65856.0,65855.0,0.001924]
[1721189905660,1.94646963,65856.0,65855.0,0.002924]
[1721189905920,1.85549574,65856.0,65855.0,0.002924]
[1721189906141,1.93846938,65856.0,65855.0,0.001924]
[1721189906532,1.94646938,65856.0,65855.0,0.002924]
[1721189907034,1.99646938,65856.0,65855.0,0.002924]
[1721189907273,1.94646938,65856.0,65855.0,0.002924]
[1721189908052,1.93846938,65856.0,65855.0,0.001924]
[1721189908292,1.98846938,65856.0,65855.0,0.001924]
[1721189908493,2.00146938,65856.0,65855.0,0.002924]
[1721189908668,1.91049574,65856.0,65855.0,0.002924]
[1721189908864,2.00147327,65856.0,65855.0,0.002924]
[1721189909220,2.31572284,65856.0,65855.0,0.002924]
[1721189909639,2.22474531,65856.0,65855.0,0.002924]
[1721189909846,2.02039574,65856.0,65855.0,0.002924]
[1721189911955,2.07039574,65856.0,65855.0,0.002924]
[1721189912426,2.16137278,65856.0,65855.0,0.002924]
[1721189915039,2.07039574,65856.0,65855.0,0.002924]
[1721189915247,2.16136988,65856.0,65855.0,0.002924]
[1721189916048,2.11136988,65856.0,65855.0,0.002924]
[1721189916586,2.02039574,65856.0,65855.0,0.002924]
[1721189916797,2.11136988,65856.0,65855.0,0.002924]
[1721189917436,2.02039574,65856.0,65855.0,0.002924]
[1721189917643,2.02039574,65856.0,65855.0,0.066124]
[1721189919510,1.86049574,65856.0,65855.0,0.066124]
[1721189920218,1.95147232,65856.0,65855.0,0.066124]
[1721189921506,1.95147232,65856.0,65855.0,0.002924]
[1721189921507,1.95148997,65856.0,65855.0,0.002924]
[1721189922759,2.00148997,65856.0,65855.0,0.002924]
[1721189923168,1.91049574,65856.0,65855.0,0.002924]
[1721189924351,1.95875745,65856.0,65855.0,0.002924]